[Event "Late-Titled-Tuesday-Blitz-February-06-2024"]
[Site "Chess.com"]
[Date "2024.02.06"]
[Round "7"]
[White "snowlord"]
[Black "jefferyx"]
[Result "0-1"]
[WhiteElo "2869"]
[BlackElo "2998"]
[TimeControl "180+1"]
[EndTime "15:18:01 PST"]
[Termination "jefferyx won on time"]

1. d4 {[%clk 0:03:00.9]} 1... d5 {[%clk 0:03:00]} 2. c4 {[%clk 0:03:00.7]} 2...
e6 {[%clk 0:03:00.5]} 3. Nf3 {[%clk 0:03:00.9]} 3... dxc4 {[%clk 0:02:59.7]} 4.
e3 {[%clk 0:02:59.4]} 4... Nf6 {[%clk 0:02:59.5]} 5. Bxc4 {[%clk 0:02:59.5]}
5... c5 {[%clk 0:02:59.9]} 6. O-O {[%clk 0:02:59.5]} 6... a6 {[%clk 0:03:00.3]}
7. Re1 {[%clk 0:02:59.9]} 7... Be7 {[%clk 0:02:58.9]} 8. e4 {[%clk 0:02:40.8]}
8... b5 {[%clk 0:02:58]} 9. Bf1 {[%clk 0:02:40.1]} 9... Bb7 {[%clk 0:02:57.9]}
10. e5 {[%clk 0:02:37.6]} 10... Nd5 {[%clk 0:02:57.9]} 11. dxc5 {[%clk
0:02:26.6]} 11... Nd7 {[%clk 0:02:57.9]} 12. a4 {[%clk 0:02:15.3]} 12... b4
{[%clk 0:02:43.6]} 13. c6 {[%clk 0:02:07]} 13... Bxc6 {[%clk 0:02:43.7]} 14. Nd4
{[%clk 0:01:54.4]} 14... Bb7 {[%clk 0:02:43.8]} 15. Qg4 {[%clk 0:01:54.8]} 15...
g6 {[%clk 0:02:25.1]} 16. Bh6 {[%clk 0:01:54.5]} 16... Qc7 {[%clk 0:02:18.7]}
17. Nd2 {[%clk 0:01:43.5]} 17... Nxe5 {[%clk 0:02:10.5]} 18. Qg3 {[%clk
0:01:41.6]} 18... Nd7 {[%clk 0:02:07.9]} 19. Qh3 {[%clk 0:01:25.6]} 19... Qb6
{[%clk 0:01:45.6]} 20. Bg7 {[%clk 0:01:18.4]} 20... Rg8 {[%clk 0:01:44.3]} 21.
Nc4 {[%clk 0:01:18.8]} 21... Qc5 {[%clk 0:01:39.1]} 22. Nxe6 {[%clk 0:00:55]}
22... fxe6 {[%clk 0:01:31.9]} 23. Qxe6 {[%clk 0:00:55.9]} 23... Rxg7 {[%clk
0:01:31.5]} 24. Nd6+ {[%clk 0:00:56.3]} 24... Kf8 {[%clk 0:01:31.4]} 25. Nxb7
{[%clk 0:00:56.7]} 25... Qc7 {[%clk 0:01:19.5]} 26. Qxd5 {[%clk 0:00:56.3]}
26... Nf6 {[%clk 0:01:16.8]} 27. Qf3 {[%clk 0:00:56.3]} 27... Ra7 {[%clk
0:01:14.1]} 28. Nc5 {[%clk 0:00:26.5]} 28... Qxc5 {[%clk 0:01:11.6]} 29. Rac1
{[%clk 0:00:26.8]} 29... Qf5 {[%clk 0:01:08.1]} 30. Qxf5 {[%clk 0:00:18.1]}
30... gxf5 {[%clk 0:01:08.2]} 31. Rc8+ {[%clk 0:00:19]} 31... Kf7 {[%clk
0:01:05]} 32. Bc4+ {[%clk 0:00:19.6]} 32... Kg6 {[%clk 0:01:05.2]} 33. Rc6
{[%clk 0:00:20.2]} 33... a5 {[%clk 0:01:04.4]} 34. h3 {[%clk 0:00:16.2]} 34...
h5 {[%clk 0:01:02.9]} 35. Re5 {[%clk 0:00:14.3]} 35... Bd8 {[%clk 0:00:52.6]}
36. Bd3 {[%clk 0:00:14.3]} 36... Rgc7 {[%clk 0:00:52.5]} 37. Rxf5 {[%clk
0:00:07.3]} 37... Rxc6 {[%clk 0:00:49]} 38. Rxa5+ {[%clk 0:00:03.9]} 38... Kh6
{[%clk 0:00:37.5]} 39. Rxa7 {[%clk 0:00:04.8]} 39... Rd6 {[%clk 0:00:37.8]} 40.
Bf5 {[%clk 0:00:03.9]} 40... Bb6 {[%clk 0:00:36.4]} 41. Rb7 {[%clk 0:00:03.5]}
41... Rd1+ {[%clk 0:00:32.7]} 42. Kh2 {[%clk 0:00:04.1]} 42... Bxf2 {[%clk
0:00:33.3]} 43. g4 {[%clk 0:00:04.7]} 43... Rd2 {[%clk 0:00:29]} 44. Kg2 {[%clk
0:00:03.1]} 44... Rxb2 {[%clk 0:00:28.8]} 45. Kf3 {[%clk 0:00:03.4]} 45... Bc5
{[%clk 0:00:25]} 46. Rb5 {[%clk 0:00:03]} 46... Rb3+ {[%clk 0:00:25.2]} 47. Ke2
{[%clk 0:00:01.8]} 47... Rc3 {[%clk 0:00:20.9]} 48. gxh5 {[%clk 0:00:01.4]}
48... Nxh5 {[%clk 0:00:20.4]} 0-1

[Event "Late-Titled-Tuesday-Blitz-February-06-2024"]
[Site "Chess.com"]
[Date "2024.02.06"]
[Round "7"]
[White "VladimirKramnik"]
[Black "Philippians46"]
[Result "1-0"]
[WhiteElo "2925"]
[BlackElo "2692"]
[TimeControl "180+1"]
[EndTime "15:18:01 PST"]
[Termination "VladimirKramnik won by checkmate"]

1. e4 {[%clk 0:03:00.9]} 1... c5 {[%clk 0:02:58.3]} 2. Nf3 {[%clk 0:03:01.1]}
2... d6 {[%clk 0:02:58.9]} 3. d4 {[%clk 0:03:00.3]} 3... cxd4 {[%clk 0:02:59.8]}
4. Nxd4 {[%clk 0:03:00.3]} 4... Nf6 {[%clk 0:03:00.4]} 5. Nc3 {[%clk 0:03:00.3]}
5... a6 {[%clk 0:03:01.1]} 6. a4 {[%clk 0:02:59.7]} 6... e5 {[%clk 0:03:00.9]}
7. Nf3 {[%clk 0:02:59]} 7... Be7 {[%clk 0:02:58.4]} 8. Bg5 {[%clk 0:02:58.2]}
8... Be6 {[%clk 0:02:58.4]} 9. Bxf6 {[%clk 0:02:58.1]} 9... Bxf6 {[%clk
0:02:59.3]} 10. Nd5 {[%clk 0:02:58.2]} 10... Nd7 {[%clk 0:02:56]} 11. Bc4 {[%clk
0:02:58.4]} 11... O-O {[%clk 0:02:53.2]} 12. O-O {[%clk 0:02:56.7]} 12... Nb6
{[%clk 0:02:53]} 13. Nxf6+ {[%clk 0:02:47.8]} 13... Qxf6 {[%clk 0:02:49.2]} 14.
Bxe6 {[%clk 0:02:48.2]} 14... Qxe6 {[%clk 0:02:50.1]} 15. a5 {[%clk 0:02:40.8]}
15... Nd7 {[%clk 0:02:48.7]} 16. Qd2 {[%clk 0:02:35.4]} 16... Nf6 {[%clk
0:02:46.1]} 17. Rfe1 {[%clk 0:02:32.2]} 17... Rfd8 {[%clk 0:02:46]} 18. Qb4
{[%clk 0:02:27.7]} 18... d5 {[%clk 0:02:07.2]} 19. exd5 {[%clk 0:02:26.9]} 19...
Nxd5 {[%clk 0:02:08.1]} 20. Qb3 {[%clk 0:02:27]} 20... f6 {[%clk 0:02:03.8]} 21.
g3 {[%clk 0:02:24.5]} 21... Qc6 {[%clk 0:01:59.1]} 22. Rad1 {[%clk 0:02:19.8]}
22... Kf8 {[%clk 0:01:56.3]} 23. Rd3 {[%clk 0:02:09.2]} 23... Ne7 {[%clk
0:01:54.6]} 24. Nxe5 {[%clk 0:01:51]} 24... Qe8 {[%clk 0:01:23.6]} 25. Nc4
{[%clk 0:01:43.9]} 25... Qc6 {[%clk 0:01:16.7]} 26. Nb6 {[%clk 0:01:35]} 26...
Rxd3 {[%clk 0:01:12.8]} 27. Qxd3 {[%clk 0:01:33.9]} 27... Re8 {[%clk 0:01:13.3]}
28. Qxh7 {[%clk 0:01:31.1]} 28... Ng8 {[%clk 0:00:45.9]} 29. Rxe8+ {[%clk
0:01:24.1]} 29... Qxe8 {[%clk 0:00:46.8]} 30. Qd3 {[%clk 0:01:14.4]} 30... Qe1+
{[%clk 0:00:42.3]} 31. Kg2 {[%clk 0:01:14.9]} 31... Qxa5 {[%clk 0:00:43]} 32.
Qd8+ {[%clk 0:01:08.5]} 32... Kf7 {[%clk 0:00:43]} 33. Qd7+ {[%clk 0:01:03.6]}
33... Kg6 {[%clk 0:00:38.8]} 34. Nd5 {[%clk 0:00:55.2]} 34... Nh6 {[%clk
0:00:33.4]} 35. Qxb7 {[%clk 0:00:47.7]} 35... Qe1 {[%clk 0:00:32.1]} 36. Ne3
{[%clk 0:00:45.6]} 36... Qa5 {[%clk 0:00:30.9]} 37. b4 {[%clk 0:00:44.1]} 37...
Qe5 {[%clk 0:00:23.9]} 38. Qd5 {[%clk 0:00:34.7]} 38... Qe7 {[%clk 0:00:19.4]}
39. c3 {[%clk 0:00:31.8]} 39... Qc7 {[%clk 0:00:13.8]} 40. c4 {[%clk 0:00:29.8]}
40... Kh7 {[%clk 0:00:11.9]} 41. b5 {[%clk 0:00:27.8]} 41... axb5 {[%clk
0:00:11.5]} 42. cxb5 {[%clk 0:00:28.5]} 42... Nf7 {[%clk 0:00:12.1]} 43. Qe4+
{[%clk 0:00:28.3]} 43... Kg8 {[%clk 0:00:11.4]} 44. Nd5 {[%clk 0:00:27.1]} 44...
Qd6 {[%clk 0:00:10.7]} 45. Qe8+ {[%clk 0:00:25]} 45... Kh7 {[%clk 0:00:07.6]}
46. Qxf7 {[%clk 0:00:24.3]} 46... Qe5 {[%clk 0:00:08.5]} 47. Nxf6+ {[%clk
0:00:22.9]} 47... Kh6 {[%clk 0:00:08.4]} 48. Ng4+ {[%clk 0:00:21.3]} 48... Kg5
{[%clk 0:00:08.8]} 49. Nxe5 {[%clk 0:00:19.4]} 49... Kh6 {[%clk 0:00:09]} 50.
Qg6# {[%clk 0:00:18]} 1-0

[Event "Late-Titled-Tuesday-Blitz-February-06-2024"]
[Site "Chess.com"]
[Date "2024.02.06"]
[Round "7"]
[White "CarrotsandPizza"]
[Black "vanyakuba"]
[Result "0-1"]
[WhiteElo "2505"]
[BlackElo "2364"]
[TimeControl "180+1"]
[EndTime "15:18:01 PST"]
[Termination "vanyakuba won on time"]

1. e4 {[%clk 0:03:00.9]} 1... d5 {[%clk 0:02:53]} 2. exd5 {[%clk 0:03:00.5]}
2... Qxd5 {[%clk 0:02:39.1]} 3. c4 {[%clk 0:03:00.1]} 3... Qe4+ {[%clk
0:02:39.4]} 4. Be2 {[%clk 0:02:59.6]} 4... Qxg2 {[%clk 0:02:39.5]} 5. Bf3 {[%clk
0:03:00.2]} 5... Qg6 {[%clk 0:02:40]} 6. Ne2 {[%clk 0:03:00.3]} 6... e5 {[%clk
0:02:32.3]} 7. Nbc3 {[%clk 0:02:58.7]} 7... c6 {[%clk 0:02:14.3]} 8. d4 {[%clk
0:02:55.3]} 8... Nd7 {[%clk 0:01:44.2]} 9. d5 {[%clk 0:02:52.9]} 9... Ngf6
{[%clk 0:01:35.7]} 10. Rg1 {[%clk 0:02:48.2]} 10... Qf5 {[%clk 0:01:30.8]} 11.
Ng3 {[%clk 0:02:48.5]} 11... Qh3 {[%clk 0:01:26.8]} 12. dxc6 {[%clk 0:02:40]}
12... bxc6 {[%clk 0:01:24.8]} 13. Bxc6 {[%clk 0:02:38.7]} 13... Rb8 {[%clk
0:01:23.3]} 14. Qe2 {[%clk 0:02:09.2]} 14... Bb4 {[%clk 0:01:17.2]} 15. Bd2
{[%clk 0:02:06.2]} 15... O-O {[%clk 0:01:09.3]} 16. O-O-O {[%clk 0:02:05.3]}
16... Nc5 {[%clk 0:01:03.8]} 17. Nd5 {[%clk 0:01:09.2]} 17... Nxd5 {[%clk
0:00:48.8]} 18. Bxd5 {[%clk 0:01:07.2]} 18... Bf5 {[%clk 0:00:27.3]} 19. Be3
{[%clk 0:00:50.2]} 19... Na4 {[%clk 0:00:20.5]} 20. Bg2 {[%clk 0:00:29.6]} 20...
Qg4 {[%clk 0:00:14.8]} 21. Qxg4 {[%clk 0:00:28.1]} 21... Bxg4 {[%clk 0:00:15.7]}
22. Rd5 {[%clk 0:00:25.9]} 22... Be6 {[%clk 0:00:09.9]} 23. Nh5 {[%clk
0:00:10.6]} 23... Bxd5 {[%clk 0:00:09.1]} 24. Bxd5 {[%clk 0:00:10.9]} 24... g6
{[%clk 0:00:07.9]} 25. Bh6 {[%clk 0:00:08.8]} 25... Bc5 {[%clk 0:00:05]} 26.
Nf6+ {[%clk 0:00:07.2]} 26... Kh8 {[%clk 0:00:05.3]} 27. b3 {[%clk 0:00:07.8]}
27... Nc3 {[%clk 0:00:03.8]} 28. Rg2 {[%clk 0:00:07.6]} 28... Ne2+ {[%clk
0:00:03.8]} 29. Kc2 {[%clk 0:00:06.4]} 29... Nf4 {[%clk 0:00:04.4]} 30. Rg4
{[%clk 0:00:03.5]} 30... Nxd5 {[%clk 0:00:04.3]} 31. Nxd5 {[%clk 0:00:03.9]}
31... f5 {[%clk 0:00:04.8]} 32. Rh4 {[%clk 0:00:03.9]} 32... e4 {[%clk
0:00:04.1]} 33. Bf4 {[%clk 0:00:03.3]} 33... Rbe8 {[%clk 0:00:02.7]} 34. Nc7
{[%clk 0:00:02.2]} 34... Re7 {[%clk 0:00:02.4]} 35. Nd5 {[%clk 0:00:03.1]} 35...
Ree8 {[%clk 0:00:02.6]} 36. Bh6 {[%clk 0:00:03.4]} 36... Rf7 {[%clk 0:00:02.4]}
37. Be3 {[%clk 0:00:03.2]} 37... Bxe3 {[%clk 0:00:02.3]} 38. fxe3 {[%clk
0:00:03.4]} 38... g5 {[%clk 0:00:02.2]} 39. Rh6 {[%clk 0:00:03]} 39... f4 {[%clk
0:00:02.5]} 40. exf4 {[%clk 0:00:01.4]} 40... gxf4 {[%clk 0:00:03.4]} 0-1

[Event "Late-Titled-Tuesday-Blitz-February-06-2024"]
[Site "Chess.com"]
[Date "2024.02.06"]
[Round "7"]
[White "mishanick"]
[Black "CaspiIsrael"]
[Result "1-0"]
[WhiteElo "3045"]
[BlackElo "2688"]
[TimeControl "180+1"]
[EndTime "15:18:09 PST"]
[Termination "mishanick won by resignation"]

1. d4 {[%clk 0:03:00.9]} 1... Nf6 {[%clk 0:02:59.3]} 2. c4 {[%clk 0:02:57.9]}
2... e6 {[%clk 0:02:59.9]} 3. Nf3 {[%clk 0:02:57]} 3... d5 {[%clk 0:02:59.7]} 4.
Nc3 {[%clk 0:02:57.2]} 4... a6 {[%clk 0:02:58]} 5. cxd5 {[%clk 0:02:55.9]} 5...
exd5 {[%clk 0:02:57.8]} 6. Bg5 {[%clk 0:02:56.5]} 6... Be6 {[%clk 0:02:58.1]} 7.
Qb3 {[%clk 0:02:53.3]} 7... Ra7 {[%clk 0:02:44.1]} 8. e3 {[%clk 0:02:36]} 8...
Nbd7 {[%clk 0:02:40.5]} 9. Qc2 {[%clk 0:02:24]} 9... Be7 {[%clk 0:02:36.3]} 10.
Bd3 {[%clk 0:02:24.6]} 10... O-O {[%clk 0:02:35.7]} 11. O-O {[%clk 0:02:25.1]}
11... h6 {[%clk 0:02:33.6]} 12. Bf4 {[%clk 0:02:22]} 12... b5 {[%clk 0:02:33]}
13. h3 {[%clk 0:02:19.2]} 13... c5 {[%clk 0:02:25.2]} 14. dxc5 {[%clk
0:02:19.3]} 14... Nxc5 {[%clk 0:02:25.8]} 15. Nd4 {[%clk 0:02:19.7]} 15... Qd7
{[%clk 0:02:24.2]} 16. a4 {[%clk 0:02:01.8]} 16... b4 {[%clk 0:02:23.7]} 17.
Nce2 {[%clk 0:02:02]} 17... Rc8 {[%clk 0:02:18.6]} 18. Qd1 {[%clk 0:02:02.6]}
18... Nfe4 {[%clk 0:02:07.8]} 19. a5 {[%clk 0:01:29.5]} 19... Bf6 {[%clk
0:02:02.9]} 20. Rc1 {[%clk 0:01:28.9]} 20... Bd8 {[%clk 0:01:57.1]} 21. Nxe6
{[%clk 0:01:27.3]} 21... fxe6 {[%clk 0:01:51.8]} 22. Ra1 {[%clk 0:01:18.3]}
22... Bf6 {[%clk 0:01:43.9]} 23. Rb1 {[%clk 0:01:15.3]} 23... Bd8 {[%clk
0:01:42.2]} 24. Bxe4 {[%clk 0:01:07.3]} 24... Nxe4 {[%clk 0:01:41.8]} 25. Be5
{[%clk 0:01:02.6]} 25... Bxa5 {[%clk 0:01:38.6]} 26. Nf4 {[%clk 0:01:03.3]}
26... Bc7 {[%clk 0:01:32.3]} 27. Bxc7 {[%clk 0:00:56.5]} 27... Raxc7 {[%clk
0:01:29.6]} 28. Ra1 {[%clk 0:00:57.2]} 28... Rc6 {[%clk 0:01:26.7]} 29. Nd3
{[%clk 0:00:56.1]} 29... Qb7 {[%clk 0:01:21]} 30. Qg4 {[%clk 0:00:53.9]} 30...
Rb6 {[%clk 0:01:09.5]} 31. Nf4 {[%clk 0:00:53.7]} 31... Nf6 {[%clk 0:01:06.1]}
32. Qe2 {[%clk 0:00:49.7]} 32... e5 {[%clk 0:01:04.2]} 33. Nd3 {[%clk
0:00:50.3]} 33... Qb8 {[%clk 0:00:58.9]} 34. Rfc1 {[%clk 0:00:49.7]} 34... Rbc6
{[%clk 0:00:55.2]} 35. Rxc6 {[%clk 0:00:49]} 35... Rxc6 {[%clk 0:00:56.1]} 36.
Qd2 {[%clk 0:00:48.8]} 36... Rb6 {[%clk 0:00:53.2]} 37. Qc2 {[%clk 0:00:47.3]}
37... b3 {[%clk 0:00:50.3]} 38. Qc5 {[%clk 0:00:45.8]} 38... Rb5 {[%clk
0:00:45.6]} 39. Qc6 {[%clk 0:00:45.9]} 39... Rb6 {[%clk 0:00:39.1]} 40. Qc5
{[%clk 0:00:46.3]} 40... Rb5 {[%clk 0:00:39.3]} 41. Qc3 {[%clk 0:00:45.8]} 41...
e4 {[%clk 0:00:34.4]} 42. Nf4 {[%clk 0:00:46]} 42... Kh7 {[%clk 0:00:33.3]} 43.
Rxa6 {[%clk 0:00:43.2]} 43... Rb6 {[%clk 0:00:27.8]} 44. Ra1 {[%clk 0:00:39.6]}
44... Qb7 {[%clk 0:00:27.2]} 45. Rc1 {[%clk 0:00:39.5]} 45... Rb4 {[%clk
0:00:18.5]} 46. Qe5 {[%clk 0:00:39.3]} 46... Rc4 {[%clk 0:00:17.4]} 47. Ra1
{[%clk 0:00:38.3]} 47... Qc8 {[%clk 0:00:16.7]} 48. Kh2 {[%clk 0:00:37.1]} 48...
Rc2 {[%clk 0:00:16]} 49. Ra7 {[%clk 0:00:36.2]} 49... Qf8 {[%clk 0:00:13.4]} 50.
Qf5+ {[%clk 0:00:35.3]} 50... Kg8 {[%clk 0:00:12.3]} 51. Qe6+ {[%clk 0:00:32]}
51... Kh7 {[%clk 0:00:11.7]} 52. Rf7 {[%clk 0:00:27.2]} 52... Rc6 {[%clk
0:00:11.1]} 53. Qf5+ {[%clk 0:00:26.8]} 53... Kg8 {[%clk 0:00:10.4]} 54. Rxf8+
{[%clk 0:00:27.3]} 54... Kxf8 {[%clk 0:00:11.3]} 55. Nxd5 {[%clk 0:00:27.7]}
55... Rc2 {[%clk 0:00:10]} 56. Nxf6 {[%clk 0:00:27.6]} 56... gxf6 {[%clk
0:00:10.4]} 57. Qxf6+ {[%clk 0:00:26.8]} 1-0

[Event "Late-Titled-Tuesday-Blitz-February-06-2024"]
[Site "Chess.com"]
[Date "2024.02.06"]
[Round "7"]
[White "Levanzovsky"]
[Black "LikeWater"]
[Result "0-1"]
[WhiteElo "2550"]
[BlackElo "2786"]
[TimeControl "180+1"]
[EndTime "15:18:09 PST"]
[Termination "LikeWater won on time"]

1. e4 {[%clk 0:03:00.9]} 1... c5 {[%clk 0:02:58.1]} 2. Nf3 {[%clk 0:03:00.8]}
2... e6 {[%clk 0:02:58.4]} 3. d4 {[%clk 0:03:00.3]} 3... cxd4 {[%clk 0:02:59.3]}
4. Nxd4 {[%clk 0:03:01.2]} 4... d6 {[%clk 0:02:57.5]} 5. c4 {[%clk 0:03:00.7]}
5... b6 {[%clk 0:02:55.8]} 6. Nc3 {[%clk 0:03:00.7]} 6... Bb7 {[%clk 0:02:56.2]}
7. Bd3 {[%clk 0:02:59.8]} 7... Nf6 {[%clk 0:02:53.7]} 8. O-O {[%clk 0:02:59.7]}
8... Be7 {[%clk 0:02:53.8]} 9. f4 {[%clk 0:02:59.7]} 9... Nbd7 {[%clk
0:02:54.1]} 10. f5 {[%clk 0:02:55.3]} 10... e5 {[%clk 0:02:41.3]} 11. Nc2 {[%clk
0:02:55.3]} 11... Nc5 {[%clk 0:02:29.8]} 12. Qe2 {[%clk 0:02:45]} 12... a6
{[%clk 0:02:29.5]} 13. b4 {[%clk 0:02:37.4]} 13... Ncd7 {[%clk 0:02:09.9]} 14.
g4 {[%clk 0:02:20.7]} 14... h6 {[%clk 0:02:06]} 15. Ne3 {[%clk 0:02:14.3]} 15...
Rc8 {[%clk 0:02:01]} 16. Bd2 {[%clk 0:02:11.6]} 16... b5 {[%clk 0:01:51.2]} 17.
cxb5 {[%clk 0:02:03.4]} 17... axb5 {[%clk 0:01:52.1]} 18. Rac1 {[%clk
0:02:02.8]} 18... O-O {[%clk 0:01:42.8]} 19. h4 {[%clk 0:01:40.9]} 19... Rxc3
{[%clk 0:01:37.3]} 20. Bxc3 {[%clk 0:01:25.1]} 20... Nxe4 {[%clk 0:01:37.5]} 21.
Bxe4 {[%clk 0:00:53.8]} 21... Bxe4 {[%clk 0:01:38.4]} 22. Be1 {[%clk 0:00:44]}
22... d5 {[%clk 0:01:05.7]} 23. Qxb5 {[%clk 0:00:25.6]} 23... Bxh4 {[%clk
0:01:01.8]} 24. Nxd5 {[%clk 0:00:15.8]} 24... Nb8 {[%clk 0:00:38.2]} 25. Bxh4
{[%clk 0:00:05.7]} 25... Qxh4 {[%clk 0:00:37.5]} 26. Rc3 {[%clk 0:00:03.1]}
26... Qxg4+ {[%clk 0:00:35.5]} 27. Kf2 {[%clk 0:00:02.8]} 27... Qg2+ {[%clk
0:00:33.4]} 28. Ke1 {[%clk 0:00:03.3]} 28... Bxd5 {[%clk 0:00:31.8]} 29. Qc5
{[%clk 0:00:03.7]} 29... Qxa2 {[%clk 0:00:20.3]} 30. f6 {[%clk 0:00:03.6]} 30...
Nd7 {[%clk 0:00:18.6]} 31. Qd6 {[%clk 0:00:02.7]} 31... Qa1+ {[%clk 0:00:12.4]}
32. Kd2 {[%clk 0:00:03.1]} 32... Qxf1 {[%clk 0:00:12]} 33. fxg7 {[%clk
0:00:03.8]} 33... Qf2+ {[%clk 0:00:11]} 34. Kc1 {[%clk 0:00:03.4]} 34... Kxg7
{[%clk 0:00:10.7]} 35. Qxd5 {[%clk 0:00:03]} 35... Nf6 {[%clk 0:00:09.6]} 36.
Qxe5 {[%clk 0:00:03.4]} 36... Qf1+ {[%clk 0:00:08.2]} 37. Kb2 {[%clk 0:00:02.9]}
37... Kh7 {[%clk 0:00:07.3]} 38. Rc6 {[%clk 0:00:01]} 38... Re8 {[%clk
0:00:06.5]} 0-1

[Event "Late-Titled-Tuesday-Blitz-February-06-2024"]
[Site "Chess.com"]
[Date "2024.02.06"]
[Round "7"]
[White "DinaBelenkaya"]
[Black "jaskol95"]
[Result "0-1"]
[WhiteElo "2427"]
[BlackElo "2589"]
[TimeControl "180+1"]
[EndTime "15:18:09 PST"]
[Termination "jaskol95 won on time"]

1. g3 {[%clk 0:03:00.9]} 1... d5 {[%clk 0:03:00.2]} 2. Bg2 {[%clk 0:02:57.5]}
2... Nf6 {[%clk 0:03:00.4]} 3. d3 {[%clk 0:02:57.7]} 3... c6 {[%clk 0:02:56.8]}
4. Nf3 {[%clk 0:02:57.5]} 4... Bg4 {[%clk 0:02:56.5]} 5. Nbd2 {[%clk 0:02:45]}
5... e6 {[%clk 0:02:56.2]} 6. h3 {[%clk 0:02:45.3]} 6... Bh5 {[%clk 0:02:55.9]}
7. c3 {[%clk 0:02:45.7]} 7... Nbd7 {[%clk 0:02:55.9]} 8. Qc2 {[%clk 0:02:45.8]}
8... Be7 {[%clk 0:02:50]} 9. b3 {[%clk 0:02:38]} 9... Bg6 {[%clk 0:02:46.1]} 10.
Bb2 {[%clk 0:02:36.9]} 10... a5 {[%clk 0:02:46.1]} 11. a4 {[%clk 0:02:34]} 11...
Qc7 {[%clk 0:02:43.2]} 12. Nh4 {[%clk 0:02:30.1]} 12... e5 {[%clk 0:02:36.3]}
13. Nxg6 {[%clk 0:02:27.2]} 13... hxg6 {[%clk 0:02:37.2]} 14. e4 {[%clk
0:02:02.3]} 14... dxe4 {[%clk 0:02:36.4]} 15. dxe4 {[%clk 0:01:39.3]} 15... Nc5
{[%clk 0:02:29.9]} 16. Nc4 {[%clk 0:01:38.4]} 16... Rd8 {[%clk 0:02:15.1]} 17.
O-O {[%clk 0:01:36.1]} 17... Nd3 {[%clk 0:02:08]} 18. Rad1 {[%clk 0:01:20.3]}
18... Nxb2 {[%clk 0:02:07.4]} 19. Qxb2 {[%clk 0:01:20.9]} 19... O-O {[%clk
0:02:06]} 20. Kh1 {[%clk 0:01:07.5]} 20... Bc5 {[%clk 0:02:02.5]} 21. f4 {[%clk
0:01:06.9]} 21... exf4 {[%clk 0:01:56.2]} 22. Rxd8 {[%clk 0:00:26.3]} 22... Rxd8
{[%clk 0:01:57.1]} 23. g4 {[%clk 0:00:24.6]} 23... Qe7 {[%clk 0:01:28]} 24. e5
{[%clk 0:00:16.8]} 24... Nxg4 {[%clk 0:01:25]} 25. Qe2 {[%clk 0:00:07.7]} 25...
Ne3 {[%clk 0:01:19]} 26. Rxf4 {[%clk 0:00:07.9]} 26... Nxg2 {[%clk 0:01:04.4]}
27. Kxg2 {[%clk 0:00:08.8]} 27... b5 {[%clk 0:01:00.1]} 28. Nxa5 {[%clk
0:00:09]} 28... bxa4 {[%clk 0:00:55.5]} 29. Rxa4 {[%clk 0:00:09.1]} 29... Qg5+
{[%clk 0:00:51.8]} 30. Rg4 {[%clk 0:00:07.9]} 30... Qc1 {[%clk 0:00:51.8]} 31.
Nc4 {[%clk 0:00:06.9]} 31... Qxc3 {[%clk 0:00:32.6]} 32. Rg3 {[%clk 0:00:06.8]}
32... Qd4 {[%clk 0:00:24.2]} 33. Kh2 {[%clk 0:00:07.2]} 33... Qd1 {[%clk
0:00:18.1]} 34. Qxd1 {[%clk 0:00:06.5]} 34... Rxd1 {[%clk 0:00:19]} 35. Rf3
{[%clk 0:00:05.4]} 35... Kf8 {[%clk 0:00:16.1]} 36. Kg2 {[%clk 0:00:05.8]} 36...
Ke7 {[%clk 0:00:15.8]} 37. Kg3 {[%clk 0:00:05.4]} 37... Ke6 {[%clk 0:00:15.2]}
38. Kf4 {[%clk 0:00:05.6]} 38... Rd4+ {[%clk 0:00:14.7]} 39. Kg3 {[%clk
0:00:05.8]} 39... Ba7 {[%clk 0:00:09.8]} 40. Rf4 {[%clk 0:00:02.6]} 40... Rd3+
{[%clk 0:00:08.4]} 41. Rf3 {[%clk 0:00:03]} 41... Rd4 {[%clk 0:00:06]} 42. Na5
{[%clk 0:00:02.5]} 42... Rd5 {[%clk 0:00:02.2]} 43. Nxc6 {[%clk 0:00:01.7]}
43... Bc5 {[%clk 0:00:02.7]} 44. b4 {[%clk 0:00:01.6]} 44... Bb6 {[%clk
0:00:02.4]} 45. Rc3 {[%clk 0:00:01.1]} 45... Bc7 {[%clk 0:00:02.7]} 0-1

[Event "Late-Titled-Tuesday-Blitz-February-06-2024"]
[Site "Chess.com"]
[Date "2024.02.06"]
[Round "7"]
[White "tptagain"]
[Black "FaustinoOro"]
[Result "1-0"]
[WhiteElo "2954"]
[BlackElo "2771"]
[TimeControl "180+1"]
[EndTime "15:18:11 PST"]
[Termination "tptagain won on time"]

1. Nf3 {[%clk 0:03:00.9]} 1... d5 {[%clk 0:02:56.6]} 2. c4 {[%clk 0:03:00.8]}
2... e6 {[%clk 0:02:54.5]} 3. e3 {[%clk 0:03:01]} 3... Nf6 {[%clk 0:02:54.3]} 4.
Nc3 {[%clk 0:03:01.6]} 4... Be7 {[%clk 0:02:48.8]} 5. b3 {[%clk 0:03:01.7]} 5...
O-O {[%clk 0:02:48.1]} 6. Bb2 {[%clk 0:03:01.7]} 6... b6 {[%clk 0:02:48.1]} 7.
cxd5 {[%clk 0:03:00.7]} 7... exd5 {[%clk 0:02:47.1]} 8. g3 {[%clk 0:02:58.2]}
8... Bb7 {[%clk 0:02:44.9]} 9. Bg2 {[%clk 0:02:58]} 9... Re8 {[%clk 0:02:45.4]}
10. O-O {[%clk 0:02:57.5]} 10... Nbd7 {[%clk 0:02:44.6]} 11. Rc1 {[%clk
0:02:57.3]} 11... a6 {[%clk 0:02:40.5]} 12. Re1 {[%clk 0:02:55]} 12... h6 {[%clk
0:02:37.1]} 13. Ne2 {[%clk 0:02:47.5]} 13... Rc8 {[%clk 0:02:21.2]} 14. Nfd4
{[%clk 0:02:29.7]} 14... c5 {[%clk 0:02:09.8]} 15. Nf5 {[%clk 0:02:29.7]} 15...
Bf8 {[%clk 0:02:10.2]} 16. d4 {[%clk 0:02:28.4]} 16... Ne4 {[%clk 0:01:58.4]}
17. dxc5 {[%clk 0:02:22.8]} 17... bxc5 {[%clk 0:01:59.3]} 18. Nc3 {[%clk
0:01:27]} 18... Nxc3 {[%clk 0:01:41.7]} 19. Bxc3 {[%clk 0:01:26.6]} 19... Nf6
{[%clk 0:01:42]} 20. Bb2 {[%clk 0:01:10.2]} 20... g6 {[%clk 0:01:30]} 21. Nh4
{[%clk 0:01:06.8]} 21... Bg7 {[%clk 0:01:28.9]} 22. Nf3 {[%clk 0:01:04.4]} 22...
Qb6 {[%clk 0:01:26.2]} 23. Nd2 {[%clk 0:00:53]} 23... h5 {[%clk 0:01:12.7]} 24.
Nb1 {[%clk 0:00:49.4]} 24... Bc6 {[%clk 0:00:46.3]} 25. h3 {[%clk 0:00:30.9]}
25... a5 {[%clk 0:00:28.9]} 26. g4 {[%clk 0:00:29]} 26... hxg4 {[%clk
0:00:27.5]} 27. hxg4 {[%clk 0:00:29.9]} 27... Ne4 {[%clk 0:00:21.9]} 28. Bxg7
{[%clk 0:00:29.1]} 28... Kxg7 {[%clk 0:00:22.8]} 29. Nc3 {[%clk 0:00:27.9]}
29... Nxc3 {[%clk 0:00:20.5]} 30. Rxc3 {[%clk 0:00:28.8]} 30... Qb4 {[%clk
0:00:19.1]} 31. Qa1 {[%clk 0:00:27.4]} 31... Kg8 {[%clk 0:00:17.8]} 32. Rec1
{[%clk 0:00:21.2]} 32... Bb7 {[%clk 0:00:13.6]} 33. Bf3 {[%clk 0:00:14.7]} 33...
Re6 {[%clk 0:00:10.3]} 34. a3 {[%clk 0:00:14.6]} 34... Qb6 {[%clk 0:00:09.8]}
35. b4 {[%clk 0:00:13.3]} 35... axb4 {[%clk 0:00:07.9]} 36. axb4 {[%clk
0:00:14.2]} 36... c4 {[%clk 0:00:06.9]} 37. Ra3 {[%clk 0:00:14.2]} 37... Qxb4
{[%clk 0:00:03.3]} 38. Rb1 {[%clk 0:00:13.8]} 38... Qe7 {[%clk 0:00:03.5]} 39.
Ra7 {[%clk 0:00:14]} 39... Rc7 {[%clk 0:00:04.2]} 40. Kg2 {[%clk 0:00:14.3]}
40... Bc8 {[%clk 0:00:02.3]} 41. Rxc7 {[%clk 0:00:13.7]} 41... Qxc7 {[%clk
0:00:02.4]} 42. Qd4 {[%clk 0:00:12.5]} 42... Rd6 {[%clk 0:00:02.2]} 43. Rh1
{[%clk 0:00:12.1]} 43... f6 {[%clk 0:00:01.8]} 44. Qf4 {[%clk 0:00:12.2]} 44...
Qe7 {[%clk 0:00:01.4]} 45. Qh6 {[%clk 0:00:11.6]} 45... Qg7 {[%clk 0:00:02]} 46.
Qh2 {[%clk 0:00:11.3]} 46... Rd8 {[%clk 0:00:01.6]} 47. Qb8 {[%clk 0:00:11.4]}
1-0